[Event "Niedersachsen-ch A 2024"]
[Site "Verden Aller"]
[Date "2024.01.04"]
[Round "1.1"]
[White "Carlstedt, Jonathan"]
[Black "Thomas, Jeremy"]
[Result "1-0"]
[ECO "E60"]
[WhiteElo "2447"]
[BlackElo "1893"]
[Annotator "RC"]
[PlyCount "53"]
[EventDate "2024.01.01"]
[EventType "swiss"]
[EventCountry "GER"]
[SourceTitle "playchess.com"]
[Source "ChessBase"]
[SourceQuality "1"]
[TimeControl "40/5400+30:1800+30"]

1. Nf3 {[%emt 0:00:04]} Nf6 {[%emt 0:00:04]} 2. b3 {[%emt 0:00:05]} g6 {[%emt 0:00:05]} 3. Bb2 {[%emt 0:00:04]} Bg7 {[%emt 0:00:05]} 4. g3 {[%emt 0:00:08]} O-O {[%emt 0:00:12]} 5. Bg2 {[%emt 0:00:06]} d6 {[%emt 0:00:14]} 6. O-O {[%emt 0:00:11]} e5 {[%emt 0:01:55]} 7. c4 {[%emt 0:00:48]} Nc6 {[%emt 0:07:00]} 8. d4 {[%emt 0:05:15]} exd4 {[%emt 0:13:03]} 9. Nxd4 {[%emt 0:02:17]} Bd7 {[%emt 0:00:20]} 10. Nc3 {[%emt 0:04:50]} Qc8 {[%emt 0:04:42]} 11. Nd5 {[%emt 0:01:18]} Qd8 {[%emt 0:10:50]} 12. Rc1 {[%emt 0:03:06]} Re8 {[%emt 0:03:47]} 13. Re1 {[%emt 0:07:25]} Ng4 {[%emt 0:13:30]} 14. Nxc6 {[%emt 0:03:16]} Bxc6 {[%emt 0:01:11]} 15. Bxg7 {[%emt 0:00:55]} Kxg7 {[%emt 0:00:17]} 16. Qd4+ {[%emt 0:00:12]} Nf6 {[%emt 0:00:06]} 17. Rc3 {[%emt 0:00:43]} Re5 {[%emt 0:04:24]} 18. f4 {[%emt 0:00:48]} Re8 {[%emt 0:08:10]} 19. e4 {[%emt 0:02:01]} Bxd5 {[%emt 0:02:28]} 20. cxd5 {[%emt 0:00:09]} Kg8 {[%emt 0:02:02]} 21. Rec1 {[%emt 0:02:21]} Rc8 {[%emt 0:01:18]} 22. e5 {[%emt 0:03:01]} Ng4 {[%emt 0:08:20]} 23. e6 {[%emt 0:00:59]} fxe6 {[%emt 0:02:03]} 24. dxe6 {[%emt 0:00:04]} c6 {[%emt 0:00:29]} 25. Qxa7 {[%emt 0:00:47]} Qc7 {[%emt 0:01:09]} 26. Qd4 {[%emt 0:01:06]} Rxe6 {[%emt 0:01:06]} 27. Bd5 {[%emt 1:02:01]} 1-0

[Event "Niedersachsen-ch A 2024"]
[Site "Verden Aller"]
[Date "2024.01.04"]
[Round "1.2"]
[White "Langer, Michael S."]
[Black "Schulz, Jens"]
[Result "0-1"]
[ECO "D94"]
[WhiteElo "1888"]
[BlackElo "2152"]
[Annotator "RC"]
[PlyCount "69"]
[EventDate "2024.01.01"]
[EventType "swiss"]
[EventCountry "GER"]
[SourceTitle "playchess.com"]
[Source "ChessBase"]
[SourceQuality "1"]
[TimeControl "40/5400+30:1800+30"]

1. Nf3 {[%emt 0:00:14]} d5 {[%emt 0:00:25]} 2. e3 {[%emt 0:00:20]} Nf6 {[%emt 0:00:26]} 3. c4 {[%emt 0:00:28]} c6 {[%emt 0:00:03]} 4. Nc3 {[%emt 0:00:32]} g6 {[%emt 0:00:37]} 5. b3 {[%emt 0:04:52]} Bg7 {[%emt 0:00:31]} 6. Bb2 {[%emt 0:00:50]} O-O {[%emt 0:00:11]} 7. d4 {[%emt 0:00:45]} Bg4 {[%emt 0:07:57]} 8. h3 {[%emt 0:03:16]} Bxf3 {[%emt 0:03:39]} 9. Qxf3 {[%emt 0:01:37]} e6 {[%emt 0:00:38]} 10. Bd3 {[%emt 0:04:59]} Nbd7 {[%emt 0:00:06]} 11. O-O {[%emt 0:01:11]} Re8 {[%emt 0:01:37]} 12. Rad1 {[%emt 0:05:08]} Qa5 {[%emt 0:07:29]} 13. a3 {[%emt 0:16:46]} a6 {[%emt 0:18:37]} 14. b4 {[%emt 0:01:22]} Qc7 {[%emt 0:00:31]} 15. cxd5 {[%emt 0:01:14]} exd5 {[%emt 0:01:57]} 16. Rc1 {[%emt 0:03:13]} Qd6 {[%emt 0:03:42]} 17. Rfd1 {[%emt 0:09:35]} Nb6 {[%emt 0:05:06]} 18. Qe2 {[%emt 0:04:06]} Re6 {[%emt 0:06:34]} 19. Ra1 {[%emt 0:09:25]} Rae8 {[%emt 0:08:16]} 20. Rdc1 {[%emt 0:01:43]} Bh6 {[%emt 0:01:05]} 21. Qf1 {[%emt 0:02:55]} Nh5 {[%emt 0:02:51]} 22. Be2 {[%emt 0:14:09]} Ng7 {[%emt 0:00:31]} 23. a4 {[%emt 0:02:10]} Rxe3 {[%emt 0:03:55]} 24. Bg4 {[%emt 0:04:27]} R3e7 {[%emt 0:01:48]} 25. Rd1 {[%emt 0:02:18]} Nc4 {[%emt 0:00:30]} 26. Bc1 {[%emt 0:00:11]} Bxc1 {[%emt 0:00:26]} 27. Raxc1 {[%emt 0:00:33]} Qxb4 {[%emt 0:00:18]} 28. Rd3 {[%emt 0:02:37]} Qd6 {[%emt 0:02:23]} 29. Rb1 {[%emt 0:00:45]} b5 {[%emt 0:00:47]} 30. axb5 {[%emt 0:00:06]} axb5 {[%emt 0:00:05]} 31. Na2 {[%emt 0:00:26]} h5 {[%emt 0:01:33]} 32. Bf3 {[%emt 0:00:17]} Ne6 {[%emt 0:00:45]} 33. Nb4 {[%emt 0:00:14]} Ng5 {[%emt 0:02:21]} 34. g3 {[%emt 0:01:34]} Nxf3+ {[%emt 0:00:19]} 35. Rxf3 {[%emt 0:00:06]} 0-1

[Event "Niedersachsen-ch A 2024"]
[Site "Verden Aller"]
[Date "2024.01.04"]
[Round "1.3"]
[White "Hebbinghaus, Holger"]
[Black "Sickmann, Lisa"]
[Result "1/2-1/2"]
[ECO "C47"]
[WhiteElo "2164"]
[BlackElo "1961"]
[Annotator "RC"]
[PlyCount "60"]
[EventDate "2024.01.01"]
[EventType "swiss"]
[EventCountry "GER"]
[SourceTitle "playchess.com"]
[Source "ChessBase"]
[SourceQuality "1"]
[TimeControl "40/5400+30:1800+30"]

1. e4 {[%emt 0:00:05]} e5 {[%emt 0:00:05]} 2. Nf3 {[%emt 0:00:09]} Nc6 {[%emt 0:00:02]} 3. Nc3 {[%emt 0:00:11]} Nf6 {[%emt 0:00:08]} 4. d4 {[%emt 0:00:07]} exd4 {[%emt 0:00:03]} 5. Nxd4 {[%emt 0:00:09]} Bb4 {[%emt 0:00:03]} 6. Nxc6 {[%emt 0:00:11]} bxc6 {[%emt 0:00:05]} 7. Bd3 {[%emt 0:00:08]} d5 {[%emt 0:00:05]} 8. exd5 {[%emt 0:00:09]} cxd5 {[%emt 0:00:05]} 9. O-O {[%emt 0:00:09]} O-O {[%emt 0:00:07]} 10. h3 {[%emt 0:00:05]} h6 {[%emt 0:00:17]} 11. Qf3 {[%emt 0:00:16]} Bb7 {[%emt 0:01:14]} 12. Bf4 {[%emt 0:03:44]} Bd6 {[%emt 0:02:55]} 13. Rfe1 {[%emt 0:05:32]} c5 {[%emt 0:04:11]} 14. b3 {[%emt 0:07:23]} Qb6 {[%emt 0:03:05]} 15. Na4 {[%emt 0:11:22]} Qc7 {[%emt 0:00:37]} 16. Bxd6 {[%emt 0:01:24]} Qxd6 {[%emt 0:00:09]} 17. Qg3 {[%emt 0:00:28]} Qxg3 {[%emt 0:07:43]} 18. fxg3 {[%emt 0:00:09]} Rfc8 {[%emt 0:04:10]} 19. c4 {[%emt 0:04:11]} d4 {[%emt 0:08:47]} 20. Re5 {[%emt 0:17:55]} Nd7 {[%emt 0:06:37]} 21. Re7 {[%emt 0:00:23]} Bc6 {[%emt 0:00:20]} 22. Bf5 {[%emt 0:01:14]} Kf8 {[%emt 0:01:42]} 23. Rxd7 {[%emt 0:06:29]} Bxd7 {[%emt 0:01:08]} 24. Bxd7 {[%emt 0:00:03]} Rc7 {[%emt 0:00:08]} 25. Bg4 {[%emt 0:01:27]} Re8 {[%emt 0:00:25]} 26. Kf2 {[%emt 0:01:29]} Re5 {[%emt 0:07:50]} 27. Bf3 {[%emt 0:06:19]} Ke7 {[%emt 0:02:05]} 28. Rd1 {[%emt 0:04:06]} a5 {[%emt 0:00:56]} 29. g4 {[%emt 0:10:02]} Kd6 {[%emt 0:01:14]} 30. Nb2 {[%emt 0:07:18]} Re3 {[%emt 0:01:01]} 1/2-1/2

[Event "Niedersachsen-ch A 2024"]
[Site "Verden Aller"]
[Date "2024.01.04"]
[Round "1.4"]
[White "Martin, Sam B"]
[Black "Stotyn, Fabian"]
[Result "0-1"]
[ECO "B29"]
[WhiteElo "1939"]
[BlackElo "2139"]
[Annotator "NA RC"]
[PlyCount "54"]
[EventDate "2024.01.01"]
[EventType "swiss"]
[EventCountry "GER"]
[SourceTitle "playchess.com"]
[Source "ChessBase"]
[SourceQuality "1"]
[TimeControl "40/5400+30:1800+30"]

1. e4 {[%emt 0:00:03]} c5 {[%emt 0:00:05]} 2. Nf3 {[%emt 0:00:05]} Nf6 {[%emt 0:00:18]} 3. Nc3 {[%emt 0:08:24]} d5 {[%emt 0:02:08]} 4. Bb5+ {[%emt 0:02:22]} Bd7 {[%emt 0:00:39]} 5. Bxd7+ {[%emt 0:00:32]} Qxd7 {[%emt 0:00:13]} 6. exd5 {[%emt 0:09:02]} Nxd5 {[%emt 0:00:23]} 7. Nxd5 {[%emt 0:00:22]} Qxd5 {[%emt 0:00:04]} 8. O-O {[%emt 0:00:13]} Nc6 {[%emt 0:00:13]} 9. Re1 {[%emt 0:04:14]} e6 {[%emt 0:02:09]} 10. b3 {[%emt 0:08:44]} Be7 {[%emt 0:03:47]} 11. Bb2 {[%emt 0:03:41]} Bf6 {[%emt 0:01:56]} 12. Bxf6 {[%emt 0:08:22]} gxf6 {[%emt 0:00:49]} 13. Qe2 {[%emt 0:02:46]} O-O-O {[%emt 0:01:18]} 14. Qe4 {[%emt 0:02:33]} Qd6 {[%emt 0:07:29]} 15. d3 {[%emt 0:14:04]} Nb4 {[%emt 0:03:05]} 16. Re2 {[%emt 0:00:55]} Nd5 {[%emt 0:01:04]} 17. Qh4 {[%emt 0:03:03]} Rdg8 {[%emt 0:04:21]} 18. g3 {[%emt 0:04:04]} h5 {[%emt 0:00:27]} 19. d4 {[%emt 0:07:26]} Rg4 {[%emt 0:01:14]} 20. Qh3 {[%emt 0:03:04]} Nf4 {[%emt 0:01:24]} 21. Qf1 {[%emt 0:00:05]} Nxe2+ {[%emt 0:01:33]} 22. Qxe2 {[%emt 0:00:06]} cxd4 {[%emt 0:01:15]} 23. h3 {[%emt 0:00:15]} Rgg8 {[%emt 0:00:23]} 24. Qc4+ {[%emt 0:03:31]} Kb8 {[%emt 0:00:45]} 25. Nxd4 {[%emt 0:00:07]} Rc8 {[%emt 0:03:13]} 26. Qa4 {[%emt 0:02:20]} Rhd8 {[%emt 0:01:55]} 27. c3 {[%emt 0:01:49]} a6 {[%emt 0:01:42]} 0-1

[Event "Niedersachsen-ch A 2024"]
[Site "Verden Aller"]
[Date "2024.01.04"]
[Round "1.5"]
[White "Lichtmannecker, Daniel"]
[Black "Vormann, Dirk"]
[Result "1-0"]
[ECO "D00"]
[WhiteElo "2124"]
[BlackElo "1854"]
[Annotator "RC"]
[PlyCount "73"]
[EventDate "2024.01.01"]
[EventType "swiss"]
[EventCountry "GER"]
[SourceTitle "playchess.com"]
[Source "ChessBase"]
[SourceQuality "1"]
[TimeControl "40/5400+30:1800+30"]

1. d4 {[%emt 0:00:06]} d5 {[%emt 0:00:09]} 2. Nc3 {[%emt 0:00:09]} Bf5 {[%emt 0:00:37]} 3. Bf4 {[%emt 0:00:49]} c6 {[%emt 0:00:18]} 4. e3 {[%emt 0:00:40]} Nf6 {[%emt 0:00:11]} 5. f3 {[%emt 0:00:16]} e6 {[%emt 0:01:16]} 6. g4 {[%emt 0:00:22]} Bg6 {[%emt 0:00:04]} 7. h4 {[%emt 0:00:11]} h6 {[%emt 0:00:07]} 8. Bd3 {[%emt 0:00:26]} Bxd3 {[%emt 0:00:52]} 9. Qxd3 {[%emt 0:00:06]} Bd6 {[%emt 0:00:13]} 10. Nge2 {[%emt 0:00:21]} Na6 {[%emt 0:01:09]} 11. O-O-O {[%emt 0:04:03]} Qe7 {[%emt 0:00:46]} 12. Bxd6 {[%emt 0:05:38]} Qxd6 {[%emt 0:00:06]} 13. e4 {[%emt 0:00:06]} Qe7 {[%emt 0:03:57]} 14. e5 {[%emt 0:03:49]} Nd7 {[%emt 0:00:09]} 15. f4 {[%emt 0:01:18]} O-O-O {[%emt 0:00:55]} 16. f5 {[%emt 0:06:03]} f6 {[%emt 0:02:03]} 17. Nf4 {[%emt 0:05:00]} fxe5 {[%emt 0:02:14]} 18. Ng6 {[%emt 0:03:30]} Qf6 {[%emt 0:00:14]} 19. Nxh8 {[%emt 0:05:34]} e4 {[%emt 0:00:05]} 20. Qg3 {[%emt 0:05:57]} Rxh8 {[%emt 0:00:20]} 21. fxe6 {[%emt 0:04:20]} Qxe6 {[%emt 0:00:07]} 22. Ne2 {[%emt 0:06:13]} Nc7 {[%emt 0:02:09]} 23. Rdf1 {[%emt 0:02:52]} Ne8 {[%emt 0:00:15]} 24. Nf4 {[%emt 0:03:20]} Qd6 {[%emt 0:00:30]} 25. Nh5 {[%emt 0:02:44]} Qg6 {[%emt 0:02:17]} 26. Nf4 {[%emt 0:07:48]} Qd6 {[%emt 0:00:22]} 27. g5 {[%emt 0:01:09]} h5 {[%emt 0:00:30]} 28. Qh3 {[%emt 0:02:07]} Nc7 {[%emt 0:05:57]} 29. Qf5 {[%emt 0:09:59]} Kb8 {[%emt 0:03:50]} 30. Qg6 {[%emt 0:01:48]} Ne8 {[%emt 0:05:10]} 31. Ne6 {[%emt 0:05:53]} c5 {[%emt 0:05:39]} 32. Qf7 {[%emt 0:03:48]} cxd4 {[%emt 0:00:25]} 33. Nxg7 {[%emt 0:00:30]} Ne5 {[%emt 0:01:32]} 34. Nxe8 {[%emt 0:01:30]} Qc5 {[%emt 0:05:56]} 35. Qe6 {[%emt 0:01:19]} Nd3+ {[%emt 0:02:42]} 36. Kb1 {[%emt 0:00:30]} Nb4 {[%emt 0:01:36]} 37. Qd6+ {[%emt 0:00:16]} 1-0

[Event "Niedersachsen-ch A 2024"]
[Site "Verden Aller"]
[Date "2024.01.04"]
[Round "1.6"]
[White "Schiller, Jan-Hendrik"]
[Black "Peters, Tom"]
[Result "0-1"]
[ECO "B50"]
[WhiteElo "1881"]
[BlackElo "2102"]
[Annotator "RC"]
[PlyCount "68"]
[EventDate "2024.01.01"]
[EventType "swiss"]
[EventCountry "GER"]
[SourceTitle "playchess.com"]
[Source "ChessBase"]
[SourceQuality "1"]
[TimeControl "40/5400+30:1800+30"]

1. e4 {[%emt 0:00:02]} c5 {[%emt 0:00:06]} 2. Nf3 {[%emt 0:00:06]} d6 {[%emt 0:00:08]} 3. Bc4 {[%emt 0:00:05]} Nc6 {[%emt 0:00:28]} 4. O-O {[%emt 0:00:27]} Nf6 {[%emt 0:01:28]} 5. d3 {[%emt 0:02:16]} e6 {[%emt 0:03:40]} 6. a4 {[%emt 0:03:49]} d5 {[%emt 0:02:54]} 7. exd5 {[%emt 0:00:43]} exd5 {[%emt 0:00:06]} 8. Re1+ {[%emt 0:01:01]} Be7 {[%emt 0:00:08]} 9. Bb5 {[%emt 0:02:19]} O-O {[%emt 0:03:13]} 10. h3 {[%emt 0:04:02]} Na5 {[%emt 0:14:44]} 11. Bd2 {[%emt 0:15:39]} Bd6 {[%emt 0:05:23]} 12. b4 {[%emt 0:01:34]} cxb4 {[%emt 0:01:24]} 13. d4 {[%emt 0:01:11]} Nc4 {[%emt 0:10:45]} 14. Bg5 {[%emt 0:05:30]} Be7 {[%emt 0:04:55]} 15. Bxc4 {[%emt 0:01:56]} dxc4 {[%emt 0:00:08]} 16. Nbd2 {[%emt 0:04:29]} Be6 {[%emt 0:03:25]} 17. a5 {[%emt 0:04:51]} b5 {[%emt 0:07:45]} 18. axb6 {[%emt 0:04:23]} c3 {[%emt 0:05:51]} 19. Bxf6 {[%emt 0:01:24]} cxd2 {[%emt 0:01:59]} 20. Rxe6 {[%emt 0:06:16]} fxe6 {[%emt 0:00:11]} 21. b7 {[%emt 0:01:31]} Rb8 {[%emt 0:00:42]} 22. Bxe7 {[%emt 0:01:02]} Qxe7 {[%emt 0:00:07]} 23. Rxa7 {[%emt 0:00:47]} Rxb7 {[%emt 0:00:20]} 24. Ra6 {[%emt 0:02:49]} Ra7 {[%emt 0:01:45]} 25. Rxa7 {[%emt 0:00:59]} Qxa7 {[%emt 0:00:17]} 26. Qxd2 {[%emt 0:00:07]} Qa1+ {[%emt 0:04:27]} 27. Kh2 {[%emt 0:00:20]} Qf1 {[%emt 0:10:53]} 28. Qe3 {[%emt 0:03:58]} Qc4 {[%emt 0:05:30]} 29. Ng5 {[%emt 0:01:55]} h6 {[%emt 0:00:42]} 30. Nf3 {[%emt 0:01:27]} Qxc2 {[%emt 0:01:48]} 31. Qxe6+ {[%emt 0:00:23]} Kh7 {[%emt 0:00:06]} 32. Qe3 {[%emt 0:06:32]} b3 {[%emt 0:00:28]} 33. Ne1 {[%emt 0:00:06]} Qc7+ {[%emt 0:02:32]} 34. g3 {[%emt 0:00:43]} b2 {[%emt 0:00:07]} 0-1

[Event "Niedersachsen-ch A 2024"]
[Site "Verden Aller"]
[Date "2024.01.04"]
[Round "1.7"]
[White "Celik, Abdullah"]
[Black "Monnerjahn, Lukas"]
[Result "1-0"]
[ECO "E05"]
[WhiteElo "2081"]
[BlackElo "1856"]
[Annotator "RC"]
[PlyCount "101"]
[EventDate "2024.01.01"]
[EventType "swiss"]
[EventCountry "GER"]
[SourceTitle "playchess.com"]
[Source "ChessBase"]
[SourceQuality "1"]
[TimeControl "40/5400+30:1800+30"]

1. d4 {[%emt 0:00:03]} d5 {[%emt 0:00:04]} 2. c4 {[%emt 0:00:03]} e6 {[%emt 0:00:04]} 3. Nf3 {[%emt 0:00:10]} Nf6 {[%emt 0:00:07]} 4. g3 {[%emt 0:01:13]} Be7 {[%emt 0:00:19]} 5. Bg2 {[%emt 0:00:03]} O-O {[%emt 0:00:19]} 6. Nbd2 {[%emt 0:00:58]} dxc4 {[%emt 0:04:58]} 7. Nxc4 {[%emt 0:03:31]} c5 {[%emt 0:02:36]} 8. O-O {[%emt 0:01:18]} Nc6 {[%emt 0:01:25]} 9. dxc5 {[%emt 0:01:17]} Bxc5 {[%emt 0:02:37]} 10. Nfe5 {[%emt 0:03:08]} Nxe5 {[%emt 0:11:43]} 11. Nxe5 {[%emt 0:00:04]} Qb6 {[%emt 0:13:42]} 12. Nd3 {[%emt 0:07:21]} Be7 {[%emt 0:06:41]} 13. Be3 {[%emt 0:05:45]} Qb5 {[%emt 0:05:17]} 14. Qc2 {[%emt 0:15:09]} Nd5 {[%emt 0:03:48]} 15. Bc5 {[%emt 0:02:48]} Bxc5 {[%emt 0:03:11]} 16. Qxc5 {[%emt 0:00:19]} Qxc5 {[%emt 0:08:13]} 17. Nxc5 {[%emt 0:00:07]} b6 {[%emt 0:00:53]} 18. Bxd5 {[%emt 0:00:34]} exd5 {[%emt 0:00:02]} 19. Nb3 {[%emt 0:00:05]} Ba6 {[%emt 0:04:31]} 20. Nd4 {[%emt 0:02:59]} Rac8 {[%emt 0:02:06]} 21. Rfc1 {[%emt 0:16:25]} Rxc1+ {[%emt 0:07:42]} 22. Rxc1 {[%emt 0:00:06]} Rc8 {[%emt 0:00:06]} 23. Rxc8+ {[%emt 0:07:08]} Bxc8 {[%emt 0:00:01]} 24. b4 {[%emt 0:07:08]} Kf8 {[%emt 0:02:49]} 25. Kg2 {[%emt 0:02:14]} Ke7 {[%emt 0:02:55]} 26. Kf3 {[%emt 0:00:22]} a6 {[%emt 0:01:13]} 27. Kf4 {[%emt 0:00:47]} Bd7 {[%emt 0:02:30]} 28. Ke5 {[%emt 0:04:32]} Be6 {[%emt 0:00:13]} 29. Nc6+ {[%emt 0:02:20]} Kd7 {[%emt 0:00:58]} 30. Nb8+ {[%emt 0:00:11]} Kc8 {[%emt 0:04:33]} 31. Nxa6 {[%emt 0:01:48]} Kb7 {[%emt 0:00:18]} 32. b5 {[%emt 0:00:09]} d4 {[%emt 0:00:52]} 33. Kxd4 {[%emt 0:02:41]} Bxa2 {[%emt 0:00:05]} 34. Nb4 {[%emt 0:00:20]} Bb3 {[%emt 0:00:43]} 35. e4 {[%emt 0:01:51]} f6 {[%emt 0:01:21]} 36. f4 {[%emt 0:00:34]} Bd1 {[%emt 0:00:32]} 37. Nd5 {[%emt 0:01:39]} Be2 {[%emt 0:03:50]} 38. Nc3 {[%emt 0:00:04]} Bg4 {[%emt 0:00:22]} 39. e5 {[%emt 0:03:24]} fxe5+ {[%emt 0:00:23]} 40. Kxe5 {[%emt 0:00:30]} g6 {[%emt 0:01:45]} 41. Kf6 {[%emt 0:38:58]} Bf5 {[%emt 0:30:10]} 42. Ne2 {[%emt 0:00:00]} Bd3 {[%emt 0:00:00]} 43. Nd4 {[%emt 0:00:00]} Kc8 {[%emt 0:00:00]} 44. g4 {[%emt 0:00:00]} Kd7 {[%emt 0:00:00]} 45. Ke5 {[%emt 0:00:00]} Ke7 {[%emt 0:00:00]} 46. f5 {[%emt 0:00:00]} gxf5 {[%emt 0:00:00]} 47. gxf5 {[%emt 0:00:00]} Kd7 {[%emt 0:00:00]} 48. f6 {[%emt 0:00:00]} Ke8 {[%emt 0:00:00]} 49. Nf5 {[%emt 0:00:00]} Kf7 {[%emt 0:00:00]} 50. Nd6+ {[%emt 0:00:00]} Kf8 {[%emt 0:00:00]} 51. Kd5 {[%emt 0:00:00]} 1-0

[Event "Niedersachsen-ch A 2024"]
[Site "Verden Aller"]
[Date "2024.01.04"]
[Round "1.8"]
[White "Harms, Friedjof"]
[Black "Lau, Udo"]
[Result "0-1"]
[ECO "B13"]
[WhiteElo "1844"]
[BlackElo "2071"]
[Annotator "NA RC"]
[PlyCount "56"]
[EventDate "2024.01.01"]
[EventType "swiss"]
[EventCountry "GER"]
[SourceTitle "playchess.com"]
[Source "ChessBase"]
[SourceQuality "1"]
[TimeControl "40/5400+30:1800+30"]

1. e4 {[%emt 0:00:04]} c6 {[%emt 0:00:15]} 2. d4 {[%emt 0:00:07]} d5 {[%emt 0:00:12]} 3. exd5 {[%emt 0:00:05]} cxd5 {[%emt 0:00:23]} 4. Bd3 {[%emt 0:00:11]} Nf6 {[%emt 0:00:52]} 5. c3 {[%emt 0:04:20]} g6 {[%emt 0:04:07]} 6. Bf4 {[%emt 0:03:08]} Nc6 {[%emt 0:00:58]} 7. Nd2 {[%emt 0:03:26]} Bg7 {[%emt 1:27:13]} 8. Ngf3 {[%emt 0:00:56]} Nh5 {[%emt 0:00:00]} 9. Bg3 {[%emt 0:09:52]} Nxg3 {[%emt 0:00:00]} 10. hxg3 {[%emt 0:01:56]} Qd6 {[%emt 0:00:00]} 11. O-O {[%emt 0:05:21]} O-O {[%emt 0:00:00]} 12. Re1 {[%emt 0:00:57]} Bd7 {[%emt 0:00:00]} 13. Qe2 {[%emt 0:05:04]} f6 {[%emt 0:00:00]} 14. c4 {[%emt 0:14:41]} e6 {[%emt 0:00:00]} 15. a3 {[%emt 0:10:53]} Rae8 {[%emt 0:00:00]} 16. Nf1 {[%emt 0:05:44]} f5 {[%emt 0:00:00]} 17. Qe3 {[%emt 0:07:13]} f4 {[%emt 0:00:00]} 18. gxf4 {[%emt 0:01:21]} Qxf4 {[%emt 0:00:00]} 19. cxd5 {[%emt 0:07:11]} exd5 {[%emt 0:00:00]} 20. Qxf4 {[%emt 0:00:51]} Rxf4 {[%emt 0:00:00]} 21. Rxe8+ {[%emt 0:03:34]} Bxe8 {[%emt 0:00:00]} 22. Re1 {[%emt 0:01:17]} Bd7 {[%emt 0:00:00]} 23. Ne3 {[%emt 0:03:12]} Nxd4 {[%emt 0:00:00]} 24. Nxd5 {[%emt 0:02:06]} Rxf3 {[%emt 0:00:00]} 25. gxf3 {[%emt 0:07:28]} Nxf3+ {[%emt 0:00:00]} 26. Kf1 {[%emt 0:00:03]} Nxe1 {[%emt 0:00:00]} 27. Kxe1 {[%emt 0:00:03]} Bxb2 {[%emt 0:00:00]} 28. Bc4 {[%emt 0:00:10]} Kg7 {[%emt 0:00:00]} 0-1

[Event "Niedersachsen-ch A 2024"]
[Site "Verden Aller"]
[Date "2024.01.04"]
[Round "1.9"]
[White "Nielsen, Lars Aaes"]
[Black "Lehmkuhl, Stefan"]
[Result "1-0"]
[ECO "B02"]
[WhiteElo "2202"]
[BlackElo "1839"]
[Annotator "RC"]
[PlyCount "121"]
[EventDate "2024.01.01"]
[EventType "swiss"]
[EventCountry "GER"]
[SourceTitle "playchess.com"]
[Source "ChessBase"]
[SourceQuality "1"]
[TimeControl "40/5400+30:1800+30"]

1. e4 {[%emt 1:31:00]} Nf6 {[%emt 0:00:33]} 2. Nc3 {[%emt 0:00:00]} d5 {[%emt 0:00:09]} 3. e5 {[%emt 0:00:00]} d4 {[%emt 0:00:50]} 4. exf6 {[%emt 0:00:00]} dxc3 {[%emt 0:00:18]} 5. fxg7 {[%emt 0:00:00]} cxd2+ {[%emt 0:00:21]} 6. Qxd2 {[%emt 0:00:00]} Qxd2+ {[%emt 0:00:44]} 7. Bxd2 {[%emt 0:00:00]} Bxg7 {[%emt 0:00:51]} 8. O-O-O {[%emt 0:00:00]} Bg4 {[%emt 0:02:13]} 9. f3 {[%emt 0:00:00]} Be6 {[%emt 0:01:09]} 10. Kb1 {[%emt 0:00:00]} Nd7 {[%emt 1:28:22]} 11. Ne2 {[%emt 0:00:00]} Nb6 {[%emt 0:00:30]} 12. Nf4 {[%emt 0:00:00]} Bd7 {[%emt 0:00:00]} 13. Nh5 {[%emt 0:00:00]} Be5 {[%emt 0:00:00]} 14. Bd3 {[%emt 0:06:30]} O-O-O {[%emt 0:00:00]} 15. Rde1 {[%emt 0:00:30]} f6 {[%emt 0:02:00]} 16. Ng3 {[%emt 0:00:30]} Na4 {[%emt 0:00:00]} 17. f4 {[%emt 0:00:30]} Bd6 {[%emt 0:00:00]} 18. Ne4 {[%emt 0:00:00]} Nc5 {[%emt 0:00:00]} 19. Nxd6+ {[%emt 0:00:00]} exd6 {[%emt 0:00:00]} 20. Bc4 {[%emt 0:00:00]} f5 {[%emt 0:00:00]} 21. Bc3 {[%emt 0:00:00]} Rhe8 {[%emt 0:00:00]} 22. Bf7 {[%emt 0:00:00]} Rxe1+ {[%emt 0:00:00]} 23. Rxe1 {[%emt 0:00:00]} Ne4 {[%emt 0:00:00]} 24. Bg7 {[%emt 0:00:00]} c6 {[%emt 0:00:00]} 25. Re3 {[%emt 0:00:00]} Be8 {[%emt 0:00:00]} 26. Bg8 {[%emt 0:00:00]} Bg6 {[%emt 0:00:00]} 27. Be6+ {[%emt 0:00:00]} Kc7 {[%emt 0:00:00]} 28. g4 {[%emt 0:00:00]} Re8 {[%emt 0:00:00]} 29. gxf5 {[%emt 0:00:00]} Nd2+ {[%emt 0:00:00]} 30. Kc1 {[%emt 0:00:00]} Bxf5 {[%emt 0:00:00]} 31. Bxf5 {[%emt 0:00:00]} Rxe3 {[%emt 0:00:00]} 32. Kxd2 {[%emt 0:00:00]} Rf3 {[%emt 0:08:30]} 33. Bh6 {[%emt 0:00:00]} Rf2+ {[%emt 0:00:00]} 34. Ke3 {[%emt 0:00:00]} Rxh2 {[%emt 0:00:00]} 35. Bg5 {[%emt 0:00:00]} h6 {[%emt 0:00:00]} 36. Be7 {[%emt 0:00:00]} Rh1 {[%emt 0:00:00]} 37. Kf3 {[%emt 0:00:00]} Rf1+ {[%emt 0:00:00]} 38. Kg3 {[%emt 0:00:00]} Rg1+ {[%emt 0:00:00]} 39. Kf3 {[%emt 0:00:00]} Rf1+ {[%emt 0:00:00]} 40. Kg4 {[%emt 0:00:00]} Rg1+ {[%emt 0:00:00]} 41. Kh5 {[%emt 0:08:51]} Rf1 {[%emt 0:00:00]} 42. Kxh6 {[%emt 0:00:19]} Rxf4 {[%emt 0:00:00]} 43. Kg5 {[%emt 0:01:01]} Rf1 {[%emt 0:35:30]} 44. Bf8 {[%emt 0:33:19]} a5 {[%emt 0:00:00]} 45. Kf6 {[%emt 0:00:00]} Re1 {[%emt 0:00:00]} 46. Bh6 {[%emt 0:00:00]} a4 {[%emt 0:00:00]} 47. Bd2 {[%emt 0:00:00]} Rd1 {[%emt 0:00:00]} 48. Bc3 {[%emt 0:00:00]} a3 {[%emt 0:00:00]} 49. bxa3 {[%emt 0:00:00]} d5 {[%emt 0:00:00]} 50. Be5+ {[%emt 0:00:00]} Kb6 {[%emt 0:00:00]} 51. Ke6 {[%emt 0:03:30]} Rf1 {[%emt 0:00:00]} 52. Bd3 {[%emt 0:00:00]} Rh1 {[%emt 0:00:00]} 53. Bf4 {[%emt 0:00:00]} Ra1 {[%emt 0:00:00]} 54. Kd6 {[%emt 0:00:00]} Ka7 {[%emt 0:00:00]} 55. Be3+ {[%emt 0:00:00]} Kb8 {[%emt 0:00:00]} 56. Kc5 {[%emt 0:00:00]} Rxa2 {[%emt 0:00:00]} 57. Bc1 {[%emt 0:00:00]} Ra1 {[%emt 0:00:00]} 58. Bb2 {[%emt 0:00:00]} Ra2 {[%emt 0:00:00]} 59. Be5+ {[%emt 0:00:00]} Ka7 {[%emt 0:00:00]} 60. Kb4 {[%emt 0:00:00]} c5+ {[%emt 0:00:00]} 61. Kb3 {[%emt 0:05:00]} 1-0